Cogmind - Beta 9.4 @@@ ROGUE MODE // 2020.02.01 @ 16:11:18 Player: PabloBot Result: Destroyed by S-10 Pest with Light Assault Rifle Performance ------------- Evolutions (2) 1000 Regions Visited (4) 800 Robots Destroyed (56) 280 Value Destroyed (1470) 1470 Prototype IDs (0) 0 Alien Tech Used (0) 0 Bonus (35) 35 TOTAL SCORE: 3585 Bonus ------- High Alert Combat Kills 35 Cogmind --------- Core Integrity 0/550 Matter 272/300 Energy 150/150 System Corruption 0% Temperature Cool (0) Movement Core (700) Ox13 Location -8/Materials Parts ------- > --- POWER (1) -------- Light Angular Momentum Engine > --- PROPULSION (4) --- (None) > --- UTILITY (3) ------ Improved Heat Sink Large Storage Unit Large Storage Unit > --- WEAPON (3) ------- (None) > --- INVENTORY (16) --- Light Nuclear Core Light Armor Plating Medium Armor Plating Peak State ------------ > --- POWER ------------ Light Nuclear Core > --- PROPULSION ------- Aluminum Leg Aluminum Leg Improved Aluminum Leg Carbon-fiber Leg > --- UTILITY ---------- Improved Heat Sink Large Storage Unit Structural Scanner > --- WEAPON ----------- Particle Gun Light EM Pulse Cannon Minigun > --- INVENTORY -------- Nuclear Core Aluminum Leg Aluminum Leg Aluminum Leg Large Storage Unit Light Armor Plating Medium Armor Plating Shock Rifle Shock Bomb Launcher Rocket Launcher [Rating: 23] Favorites ----------- Power Light Nuclear Core Engine Ion Engine Power Core Light Nuclear Core Propulsion Aluminum Leg Leg Aluminum Leg Utility Large Storage Unit Device Structural Scanner Storage Large Storage Unit Processor Targeting Computer Protection Light Armor Plating Weapon Assault Rifle Energy Gun Particle Gun Energy Cannon Light EM Pulse Cannon Ballistic Gun Assault Rifle Launcher Rocket Launcher Build | -11 -10 -9 -9 -8 ------- Run | Scr Mat Mat Min Mat Slots Evolved 4 | . . 2 . 2 Power . | . . . . . Propulsion 2 | . . 1 . 1 Utility 1 | . . 1 . . Weapon 1 | . . . . 1 Parts Attached 60 | 5 17 5 4 29 Power 7 | 1 3 . 1 2 Engine 5 | 1 3 . . 1 Core 2 | . . . 1 1 Reactor . | . . . . . Propulsion 22 | 2 5 2 2 11 Treads . | . . . . . Leg 22 | 2 5 2 2 11 Wheel . | . . . . . Hover . | . . . . . Flight . | . . . . . Utility 12 | . 6 2 . 4 Device 5 | . 1 1 . 3 Storage 3 | . 2 . . 1 Processor 2 | . 2 . . . Hackware . | . . . . . Protection 2 | . 1 1 . . Artifact . | . . . . . Weapon 19 | 2 3 1 1 12 Energy Gun 11 | 1 3 . . 7 Energy Cannon 2 | . . 1 . 1 Ballistic Gun 3 | 1 . . . 2 Ballistic Cannon . | . . . . . Launcher 3 | . . . 1 2 Special Weapon . | . . . . . Impact Weapon . | . . . . . Slashing Weapon . | . . . . . Piercing Weapon . | . . . . . Special Melee Weapon . | . . . . . Unidentified Prototypes . | . . . . . Parts Lost 26 | . 4 . . 22 Power 4 | . 2 . . 2 Propulsion 10 | . . . . 10 Utility 2 | . 1 . . 1 Weapon 10 | . 1 . . 9 Highest Loss Streak 16 | . 2 . . 16 Average Slot Usage (%) 96 | . 96 99 100 94 Engine 6 | . 13 11 5 . Core 4 | . . . 5 8 Leg 31 | . 28 33 33 33 Device 11 | . 1 20 22 13 Storage 12 | . 13 11 11 13 Processor 3 | . 11 . . . Energy Gun 7 | . 13 1 . 7 Energy Cannon 5 | . . 9 11 6 Ballistic Gun 10 | . 14 11 9 6 Launcher 2 | . . . 1 4 Naked Turns . | . . . . . Heaviest Build 53 | 7 26 29 31 53 Greatest Support 48 | 20 20 33 33 48 Greatest Overweight (x) 10 | . 1 . . 10 Average Overweight (x) . | . . . . . Largest Inventory Capacity 16 | 4 10 10 10 16 Average Capacity 10 | 4 8 10 10 12 Most Carried 14 | 3 10 10 10 14 Average Carried 8 | . 6 9 9 9 Final Capacity 16 | 4 10 10 10 16 Final Carried 10 | 3 10 10 10 3 Class Distribution -------------------- 38% | Scavenger-Mutant 35% | Mutant 20% | Scavenger-Skirmisher 6% | Skirmisher Dominant Class ---------------- Mutant | -10/Materials Scavenger-Mutant | -9/Materials Scavenger-Mutant | -9/Mines Scavenger-Skirmisher | -8/Materials Resources | -11 -10 -9 -9 -8 ----------- Run | Scr Mat Mat Min Mat Matter Collected 1190 | 268 312 . 153 457 Remotely . | . . . . . Salvage Created 2041 | 93 457 . 275 1216 Parts 131 | 9 32 . 18 72 Haulers Intercepted . | . . . . . Recyclers Shooed 2 | . 2 . . . Parts Field Recycled . | . . . . . Retrieved Matter . | . . . . . Parts Self-Destructed . | . . . . . Prevented . | . . . . . Kills | -11 -10 -9 -9 -8 ------- Run | Scr Mat Mat Min Mat Combat Hostiles Destroyed 36 | 1 8 . 7 20 Guns 19 | 1 7 . 2 9 Cannons 4 | . . . 2 2 AOE 13 | . 1 . 3 9 Classes Destroyed 8 | 2 4 . 1 1 Worker 6 | . 1 . . 5 Builder 3 | . 1 . . 2 Tunneler 2 | 2 . . . . Recycler 6 | . 1 . 1 4 Watcher 3 | . 2 . . 1 Swarmer 7 | . . . 4 3 Grunt 22 | 1 8 . 3 10 Sentry 7 | . . . . 7 Best Kill Streak 12 | 3 5 . 4 12 Combat Bots Only 6 | 1 4 . 4 6 Max Kills in Single Turn 4 | 2 2 . 3 4 Gunslinging . | . . . . . Exploded 3 | . 1 . 3 2 Melee . | . . . . . Uniques/NPCs Destroyed . | . . . . . Combat | -11 -10 -9 -9 -8 -------- Run | Scr Mat Mat Min Mat Damage Taken 3323 | 87 586 141 163 2346 Core 803 | 10 194 22 22 555 Absorbed by Shields . | . . . . . Core Remaining (%) 67 | 96 18 . 89 . Volleys Fired 102 | 6 42 2 9 43 Largest 3 | 2 2 2 2 3 Hottest 146 | 60 70 76 76 146 Shots Fired 217 | 12 74 4 18 109 Gun 167 | 12 74 2 9 70 Cannon 29 | . . 2 9 18 Launcher 21 | . . . . 21 Special . | . . . . . Kinetic 87 | 6 42 2 9 28 Thermal 49 | . 23 . . 26 Explosive 11 | . . . . 11 Electromagnetic 70 | 6 9 2 9 44 Robot Hit Streak 9 | 2 7 4 5 9 Robot Miss Streak 5 | 2 2 . 4 5 Penetration Max . | . . . . . Secondary Targets 4 | . 2 . . 2 Max Gunslinging Chain 1 | . 1 . . 1 Shots Hit Robots 139 | 7 53 4 9 66 Core Hits 90 | 4 21 . 9 56 Critical Hits . | . . . . . Critical Kills . | . . . . . Critical Parts Destroyed . | . . . . . Melee Attacks . | . . . . . Impact . | . . . . . Slashing . | . . . . . Piercing . | . . . . . Sneak Attacks . | . . . . . Combat Hostiles . | . . . . . Follow-up Attacks . | . . . . . Damage Inflicted 3938 | 92 678 134 296 2738 Guns 1480 | 92 567 25 39 757 Cannons 459 | . . 45 149 265 Explosions 1990 | . 111 64 108 1707 Melee . | . . . . . Ramming 9 | . . . . 9 Kinetic 673 | 37 321 25 39 251 Thermal 866 | . 225 64 108 469 Explosive 1097 | . . . . 1097 Electromagnetic 1293 | 55 132 45 149 912 Impact . | . . . . . Slashing . | . . . . . Piercing . | . . . . . Highest Corruption . | . . . . . Average Corruption . | . . . . . Corruption Purged . | . . . . . Overload Shots . | . . . . . Overflow Damage 124 | . 3 . . 121 Projectiles . | . . . . . Explosions 124 | . 3 . . 121 Melee . | . . . . . Knockbacks . | . . . . . Impact . | . . . . . Kinetic . | . . . . . Secondary . | . . . . . Self-Inflicted Damage 206 | . 71 20 11 104 Shots 10 | . 1 1 1 7 Rammed 2 | . . . . 2 Targets Rammed 3 | . . . . 3 Kicked 1 | . . . . 1 Crushed . | . . . . . Highest Temperature 272 | 48 153 10 12 272 Average Temperature 74 | 29 50 9 9 94 Received Heat Transfer 1167 | 48 288 66 18 747 Effects 3 | . . . . 3 Interference 3 | . . . . 3 Siege Activations . | . . . . . Robots Corrupted . | . . . . . Combat Hostiles . | . . . . . Parts Fried 1 | . . . . 1 Impact Corruptions . | . . . . . Robots Melted . | . . . . . Combat Hostiles . | . . . . . Parts Melted 1 | . . . . 1 Heat Transferred 1500 | . 397 150 50 903 Parts Sabotaged . | . . . . . Parts Stolen . | . . . . . Parts Stripped . | . . . . . Power Chain Reactions 4 | . . 1 1 2 Missiles Intercepted . | . . . . . Alert | -11 -10 -9 -9 -8 ------- Run | Scr Mat Mat Min Mat Peak Influence 489 | 30 163 69 191 489 Average Influence 110 | 5 80 54 114 161 Maximum Alert Level 2 | . . . . 2 Low Security (%) 88 | 100 100 100 100 69 Level 1 9 | . . . . 23 Level 2 2 | . . . . 7 Level 3 . | . . . . . Level 4 . | . . . . . Level 5 . | . . . . . High Security . | . . . . . Max Security . | . . . . . Squads Dispatched 12 | . 4 2 . 6 Investigation 4 | . 1 1 . 2 Extermination . | . . . . . Reinforcement 5 | . 3 1 . 1 Assault . | . . . . . Garrison 3 | . . . . 3 Intercept . | . . . . . Construction Impeded . | . . . . . Haulers Reinforced . | . . . . . Stealth | -11 -10 -9 -9 -8 --------- Run | Scr Mat Mat Min Mat Distress Signals 6 | . 2 1 . 3 Communications Jammed . | . . . . . Distress Signals . | . . . . . Times Spotted 73 | 1 12 8 10 42 Peak Tracking Total 10 | 1 3 7 4 10 Tactical Retreats 5 | . . 2 . 3 Traps | -11 -10 -9 -9 -8 ------- Run | Scr Mat Mat Min Mat Traps Triggered 2 | . 1 . . 1 Indirectly 1 | . . . . 1 Trap Hack Attempts . | . . . . . Triggered . | . . . . . Disarmed . | . . . . . Reprogrammed . | . . . . . Reused . | . . . . . Traps Extracted . | . . . . . Installed . | . . . . . Triggered . | . . . . . Machines | -11 -10 -9 -9 -8 ---------- Run | Scr Mat Mat Min Mat Machines Disabled 5 | . 2 1 . 2 Max in Single Turn 2 | . 2 1 . 1 Machines Sabotaged . | . . . . . Garrisons Compromised . | . . . . . Overloaded Fab Kills . | . . . . . Fab Network Shutdowns . | . . . . . Hacking | -11 -10 -9 -9 -8 --------- Run | Scr Mat Mat Min Mat Machines Accessed 9 | . 3 3 . 3 Terminals 5 | . 2 3 . . Fabricators . | . . . . . Repair Stations 2 | . . . . 2 Recycling Units 1 | . 1 . . . Scanalyzers 1 | . . . . 1 Garrison Access . | . . . . . Total Hacks 32 | . 5 10 . 17 Successful 25 | . 2 8 . 15 Failed 6 | . 3 1 . 2 Catastrophic . | . . . . . Database Lockouts 1 | . . 1 . . Manual . | . . . . . Terminals 13 | . 3 10 . . Fabricators . | . . . . . Repair Stations 11 | . . . . 11 Recycling Units 2 | . 2 . . . Scanalyzers 6 | . . . . 6 Garrison Access . | . . . . . Terminal Hacks 9 | . 1 8 . . Record 6 | . . 6 . . Branch Access Points 1 | . . 1 . . Alert Level 1 | . 1 . . . Zone Layout 1 | . . 1 . . Fabricator Hacks . | . . . . . Repair Station Hacks 9 | . . . . 9 Scan Component 6 | . . . . 6 Repair 3 | . . . . 3 Recycling Unit Hacks 1 | . 1 . . . Retrieve Components 1 | . 1 . . . Scanalyzer 6 | . . . . 6 Insert Component 3 | . . . . 3 Analyze 3 | . . . . 3 Garrison Access Hacks . | . . . . . Unauthorized Hacks . | . . . . . Terminals . | . . . . . Fabricators . | . . . . . Repair Stations . | . . . . . Recycling Units . | . . . . . Scanalyzers . | . . . . . Garrison Access . | . . . . . Data Cores Recovered . | . . . . . Used . | . . . . . Hacking Detections 6 | . 2 1 . 3 Full Trace Events 2 | . . . . 2 Feedback Events . | . . . . . Feedback Blocked . | . . . . . Robot Schematics Acquired . | . . . . . Robots Built . | . . . . . Matter . | . . . . . Time . | . . . . . Total Robot Build Rating . | . . . . . Part Schematics Acquired 3 | . . . . 3 Parts Built . | . . . . . Matter . | . . . . . Time . | . . . . . Total Part Build Rating . | . . . . . Parts Repaired 3 | . . . . 3 Time 84 | . . . . 84 Parts Recycled . | . . . . . Recycled Matter . | . . . . . Retrieved Matter . | . . . . . Retrieved Components 9 | . 9 . . . Parts Scanalyzed 3 | . . . . 3 Part Schematics Acquired 3 | . . . . 3 Parts Damaged . | . . . . . Bothacking | -11 -10 -9 -9 -8 ------------ Run | Scr Mat Mat Min Mat Used RIF Installer . | . . . . . Robots Hacked . | . . . . . Non-combat . | . . . . . Combat . | . . . . . Robot Hacks Applied . | . . . . . Relay Couplers Released . | . . . . . Robots Rewired . | . . . . . Allies Hacked . | . . . . . Hacks Repelled . | . . . . . Allies | -11 -10 -9 -9 -8 -------- Run | Scr Mat Mat Min Mat Total Allies . | . . . . . Largest Group . | . . . . . Highest-Rated Group . | . . . . . Highest-Rated Ally . | . . . . . Total Orders . | . . . . . Ally Attacks . | . . . . . Total Damage . | . . . . . Kills . | . . . . . Allies Corrupted . | . . . . . Allies Melted . | . . . . . Intel | -11 -10 -9 -9 -8 ------- Run | Scr Mat Mat Min Mat Robot Analysis Total . | . . . . . Derelict Logs Recovered . | . . . . . Drone Launches . | . . . . . Drone Recoveries . | . . . . . Exploration | -11 -10 -9 -9 -8 ------------- Run | Scr Mat Mat Min Mat Turns Passed 2536 | 131 757 282 370 996 Spaces Moved 1459 | 91 361 220 265 522 Core 22 | 19 . . . 3 Treads . | . . . . . Legs 1437 | 72 361 220 265 519 Wheels . | . . . . . Hover . | . . . . . Flight . | . . . . . Fastest Speed 50 | 50 120 120 120 120 Average Speed 128 | 105 141 120 120 130 Slowest Speed 550 | 120 150 120 120 550 Overloaded Moves . | . . . . . Propulsion Burnouts . | . . . . . Robots Hopped . | . . . . . Cave-ins Triggered . | . . . . . Exploration Rate (%) 30 | 8 38 15 58 35 Regions Visited 4 Branch Regions 1 Pre-discovered Areas . | . . . . . Known Exits Taken 1 | . . 1 . . Unknown Exits Taken 3 | 1 1 . 1 . Scrap Searched . | . . . . . Spaces Dug . | . . . . . Terrain Destroyed 109 | . 24 3 4 78 Melee . | . . . . . Projectile . | . . . . . AOE 109 | . 24 3 4 78 Actions | -11 -10 -9 -9 -8 --------- Run | Scr Mat Mat Min Mat Total 1925 | 112 532 233 300 748 Wait 246 | 7 93 4 16 126 Move 1455 | 90 360 219 264 522 Hop . | . . . . . Pick Up 37 | 4 12 2 3 16 Fast Attach 11 | 4 5 . . 2 Attach 25 | 1 4 2 1 17 Detach . | . . . . . Swap 24 | . 8 3 3 10 Drop 22 | . 8 1 4 9 Fire 102 | 6 42 2 9 43 Melee . | . . . . . Ram 1 | . . . . 1 Kick 2 | . . . . 2 Crush . | . . . . . Escape Stasis . | . . . . . Rewire . | . . . . . Trap . | . . . . . Miscellaneous . | . . . . . Route ------- -11/Scrapyard -10/Materials -9/Materials (discovered 4 exits: *Min x2 / Sto x2) -9/Mines -8/Materials History --------- Turn | Location | Event 2 | -11/Scrapyard | Met Revision 17 82 | -11/Scrapyard | Discovered new exit (range 8) 132 | -11/Scrapyard | Entered Materials 306 | -10/Materials | Build established: Mutant 798 | -10/Materials | Core integrity fell below 50% 801 | -10/Materials | Core integrity fell below 20% 840 | -10/Materials | Discovered new exit (range 4) 889 | -10/Materials | Entered another Materials area 889 | -9/Materials | Evolved 2 slots: Propulsion x1, Utility x1 1022 | -9/Materials | Discovered new exit (range 6) 1093 | -9/Materials | Identified exit to Mines 1093 | -9/Materials | Identified exit to Storage 1106 | -9/Materials | Build established: Scavenger-Mutant 1107 | -9/Materials | Central database locked down 1171 | -9/Materials | Entered Mines 1350 | -9/Mines | Received a Rocket Launcher from a helpful Derelict 1483 | -9/Mines | Discovered new exit (range 7) 1541 | -9/Mines | Entered Materials 1541 | -8/Materials | Evolved 2 slots: Propulsion x1, Weapon x1 1605 | -8/Materials | Repaired Imp. Aluminum Leg 1878 | -8/Materials | Repaired Aluminum Leg 1906 | -8/Materials | Repaired Aluminum Leg 2040 | -8/Materials | Build established: Scavenger-Skirmisher 2277 | -8/Materials | Garrison activated, responded to threat 2388 | -8/Materials | Garrison activated, responded to threat 2420 | -8/Materials | Lost 4 parts (2n2w) 2481 | -8/Materials | Core integrity fell below 50% 2509 | -8/Materials | Core integrity fell below 20% 2537 | -8/Materials | Destroyed by S-10 Pest with Light Assault Rifle Last Messages --------------- 02468_ Structural Scanner destroyed. 02469_ Aluminum Leg destroyed. 02471_ Beam Rifle destroyed. 02475_ Carbon-fiber Leg destroyed. 02475_ S-10 Pest destroyed. 02476_ Lgt. EM Pulse Cannon destroyed. 02477_ Aluminum Leg destroyed. 02477_ Acquired 10 matter. 02478_ Aluminum Leg destroyed. 02480_ K-01 Serf collects debris. 02482_ Nuclear Core destroyed. 02489_ Aluminum Leg destroyed. 02496_ K-01 Serf collects debris. 02511_ Carbon-fiber Leg destroyed. 02517_ Aluminum Leg destroyed. 02529_ C-30 ARC bursts open, deploying its payload. 02529_ S-10 Pest unfolds itself. 02531_ Slammed into S-10 Pest. 02531_ Destabilizing: Short circuit. 02531_ Broken Imp. Heat Sink permanently disabled. Map ----- +----------------------------------------------------+ | ??????????????????????????????????""" ## # | | ????????????????????????????????????#########/#### | | ?????????????????????????? ######### *= | | ?????????????????????????? % % =% * | | ????????????????????????? [% | | ????????????????????????? ### | | ???????????????????????? #| | | ????????????????????????? ## | | ???????????????????????# """ ### | | ???????????????????????# """"" = ##? | | ???????????????????????# """"" [%*"" #?? | | ???????????????????????# """"" %[%G" #?? | | ???????????????????????# "" ="" = #?? | | ???????????????????? %!! =%*#?? | | ????????????????????????# ! *= # " | | ????????????????????????##############"T"### + " | | ?????????????????????????????????????#"""#?# # " | | ?????????????????????????????????????#####?#==[#?? | | ??????????????????????????????#######?????##%=%##? | | ???????????? ################ #######*[*= #? | | ??????????? = #? | | ????????????T [ T #? | | ??????????? gg ## | | ???????????????##########s##### ####### | | ????????????????????????#s#???#######?????#### | | ????????????????????????#@#??????????????????# | | ????????????????????????#s#??????????????????# | | ???????????????????????? %#??????????????????# ### | | ???????????????????????? !#??????????????????? #?? | | ??????????????????????? #??????????????????? #?? | | ??????????????????????? #??????????????????? #?? | | ?????????????????????? #??????????????????? ??? | | ?????????????????????? #??????????????????? ??? | | ?????????????????????" #?????????????????##+### | | ?????????????????????" ??????????????????# | | ???????????????????? ??????????????????# | | ????????????????????##+###????????????###+### """ | | ??????????????????????????????????##### # """ | | ??????????????????????????????????? # """ | | ???????????????????????????????????? + """ | | ????????????????????????????????????? # """ | | ??????????????????????????????????????# # | | ???????????????????????????????????????# ####### | | ???????????????????????????????????????# # ! | | ???????????????????????????????????????# # | | ???????????????????????????????????????# + """ | | ???????????????????????????????????????# # """ | | ???????????????????????????????????????# # """ " | | ???????????????????????????????????????# # | | ???????????????????????????????????????##### " | +----------------------------------------------------+ Best States ------------- Heat Dissipation 45 Energy Generation 14 Energy Capacity 250 Matter Stores 366 Matter Capacity 450 Sight Range 18 Terrain Scan Density 10 Armor Coverage 150 Evasion (%) 50 Targeting Accuracy 5 Item Schematics ----------------- Lrg. Storage Unit | -8/Materials | Scanalyzed Aluminum Leg | -8/Materials | Scanalyzed Lgt. Armor Plating | -8/Materials | Scanalyzed Robot Schematics ------------------ None Fabricated ------------ Nothing Alien Tech Used ----------------- None Achievements -------------- None Challenges ------------ None Game ------ Seed DroneHardcellAutohacker Manual? 0 Play Time 00:47:35 Cumulative 10.7 hours Start 2020.02.01 @ 13:24:33 End 2020.02.01 @ 16:11:18 Sessions 3 Manual Loads 0 Difficulty Rogue Special Mode None Game No. 7 Rogue 7 Adventurer 0 Explorer 0 Win Type - Total 0 Types 0/0/0/0/0/0/0 Lore% 8 Gallery% 13 Achievement% 12 Wizard Run 0 Options --------- ASCII 0 Keyboard 0 Movement Numpad Keybinds 0 Fullscreen 1 Font 12/Terminus Map View 83x54 Tactical HUD 1 Map Filters NONE Filters NONE Steam 1 RUN: 41b8777f-c812-4d0d-9bbf-c32c52e8db83